fUST/lending_fUST_20240725
["ID","MTS","AMOUNT","RATE_DAILY","PERIOD"]
[333082503,1721849442493,-1587.24,0.00013972,2]
[333082504,1721849442503,-549.87,0.00013972,2]
[333082505,1721849442512,-609.45168929,0.00013972,2]
[333082507,1721849442522,-500.0,0.00013972,2]
[333082509,1721849442531,-500.0,0.00013972,2]
[333082510,1721849442541,-1143.95,0.00013972,2]
[333082511,1721849442550,-530.71,0.00013972,2]
[333082512,1721849442560,-1279.12,0.00013972,2]
[333082513,1721849442569,-183.20573,0.00013972,2]
[333082514,1721849442579,-183.20573,0.00013972,2]
[333082515,1721849442588,-500.0,0.00013972,2]
[333082516,1721849442599,-183.20573,0.00013972,2]
[333082517,1721849442608,-183.20573,0.00013972,2]
[333082518,1721849442618,-500.0,0.00013972,2]
[333082519,1721849442627,-500.0,0.00013972,2]
[333082520,1721849442638,-1173.68,0.00013972,2]
[333082521,1721849442647,-500.0,0.00013972,2]
[333082522,1721849442657,-1699.57,0.00013972,2]
[333082523,1721849442666,-500.0,0.00013972,2]
[333082525,1721849442675,-500.0,0.00013972,2]
[333082526,1721849442685,-2171.34,0.00013972,2]
[333082528,1721849442695,-1179.92,0.00013972,2]
[333082529,1721849442704,-1387.81,0.00013972,2]
[333082530,1721849442714,-500.0,0.00013972,2]
[333082532,1721849442724,-617.23,0.00013972,2]
[333082533,1721849442734,-500.0,0.00013972,2]
[333082535,1721849442745,-500.0,0.00013972,2]
[333082537,1721849442755,-500.0,0.00013972,2]
[333082539,1721849442764,-500.0,0.00013972,2]
[333082541,1721849442774,-500.0,0.00013972,2]
[333082543,1721849442784,-500.0,0.00013972,2]
[333082545,1721849442794,-500.0,0.00013972,2]
[333082546,1721849442804,-500.0,0.00013972,2]
[333082547,1721849442813,-1197.15,0.00013972,2]
[333082549,1721849442823,-151.0,0.00013972,2]
[333082550,1721849442832,-1568.27,0.00013972,2]
[333082551,1721849442841,-1347.35,0.00013972,2]
[333082552,1721849442851,-1085.66,0.00013972,2]
[333082553,1721849442862,-500.0,0.00013972,2]
[333082555,1721849442872,-500.0,0.00013972,2]
[333082556,1721849442881,-500.0,0.00013972,2]
[333082557,1721849442891,-1394.13,0.00013972,2]
[333082558,1721849442901,-4404.28,0.00013972,2]
[333082559,1721849442912,-500.0,0.00013972,2]
[333082560,1721849442922,-500.0,0.00013972,2]
[333082561,1721849442932,-10581.37,0.00013972,2]
[333082562,1721849442944,-1673.72,0.00013972,2]
[333082563,1721849442954,-500.0,0.00013972,2]
[333082564,1721849442964,-2341.68,0.00013972,2]
[333082565,1721849442973,-500.0,0.00013972,2]
[333082566,1721849442982,-733.27,0.00013972,2]
[333082567,1721849442991,-500.0,0.00013972,2]
[333082568,1721849443001,-737.83,0.00013972,2]
[333082569,1721849443011,-884.56,0.00013972,2]
[333082570,1721849443020,-500.0,0.00013972,2]
[333082571,1721849443029,-500.0,0.00013972,2]
[333082572,1721849443038,-1044.5,0.00013972,2]
[333082573,1721849443048,-2021.82,0.00013972,2]
[333082574,1721849443057,-500.0,0.00013972,2]
[333082575,1721849443066,-500.0,0.00013972,2]
[333082576,1721849443076,-545.85,0.00013972,2]
[333082577,1721849443085,-1617.6,0.00013972,2]
[333082578,1721849443096,-151.0,0.00013972,2]
[333082579,1721849443105,-151.0,0.00013972,2]
[333082580,1721849443115,-500.0,0.00013972,2]
[333082581,1721849443125,-151.0,0.00013972,2]
[333082582,1721849443134,-500.0,0.00013972,2]
[333082583,1721849443144,-151.0,0.00013972,2]
[333082584,1721849443154,-500.0,0.00013972,2]
[333082585,1721849443164,-2930.93,0.00013972,2]
[333082586,1721849443173,-500.0,0.00013972,2]
[333082587,1721849443182,-500.0,0.00013972,2]
[333082588,1721849443192,-500.0,0.00013972,2]
[333082589,1721849443202,-500.0,0.00013972,2]
[333082590,1721849443213,-831.54,0.00013972,2]
[333082591,1721849443224,-727.45,0.00013972,2]
[333082592,1721849443237,-500.0,0.00013972,2]
[333082593,1721849443247,-500.0,0.00013972,2]
[333082594,1721849443262,-2773.96,0.00013972,2]
[333082595,1721849443271,-500.0,0.00013972,2]
[333082596,1721849443281,-500.0,0.00013972,2]
[333082597,1721849443291,-12837.91,0.00013972,2]
[333082598,1721849443302,-500.0,0.00013972,2]
[333082599,1721849443311,-3940.69,0.00013972,2]
[333082600,1721849443321,-541.8536978,0.00013972,2]
[333082601,1721849443331,-6821.14,0.00013972,2]
[333082602,1721849443342,-179.862018,0.00013972,2]
[333082603,1721849443353,-500.0,0.00013972,2]
[333082604,1721849443362,-2855.69,0.00013972,2]
[333082605,1721849443371,-4287.99,0.00013972,2]
[333082606,1721849443381,-3192.17,0.00013972,2]
[333082607,1721849443390,-500.0,0.00013972,2]
[333082608,1721849443400,-151.0,0.00013972,2]
[333082609,1721849443410,-151.0,0.00013972,2]
[333082610,1721849443419,-3132.61,0.00013972,2]
[333082611,1721849443429,-4239.86,0.00013972,2]
[333082612,1721849443439,-1648.14,0.00013972,2]
[333082613,1721849443448,-10382.21,0.00013972,2]
[333082614,1721849443458,-151.0,0.00013972,2]
[333082615,1721849443467,-151.0,0.00013972,2]
[333082616,1721849443476,-151.0,0.00013972,2]
[333082617,1721849443485,-500.0,0.00013972,2]
[333082618,1721849443495,-504.59,0.00013972,2]
[333082619,1721849443504,-835.62,0.00013972,2]
[333082620,1721849443515,-857.92,0.00013972,2]
[333082621,1721849443526,-423.36915554,0.00013972,2]
[333082622,1721849443538,-1990.49,0.00013972,2]
[333082623,1721849443549,-500.0,0.00013972,2]
[333082624,1721849443560,-607.76,0.00013972,2]
[333082625,1721849443570,-500.0,0.00013972,2]
[333082626,1721849443579,-500.0,0.00013972,2]
[333082627,1721849443589,-809.09,0.00013972,2]
[333082628,1721849443599,-500.0,0.00013972,2]
[333082629,1721849443611,-500.0,0.00013972,2]
[333082630,1721849443624,-1825.95,0.00013972,2]
[333082631,1721849443635,-500.0,0.00013972,2]
[333082632,1721849443646,-500.0,0.00013972,2]
[333082633,1721849443655,-1214.08,0.00013972,2]
[333082634,1721849443665,-500.0,0.00013972,2]
[333082635,1721849443674,-500.0,0.00013972,2]
[333082636,1721849443684,-619.02,0.00013972,2]
[333082637,1721849443693,-500.0,0.00013972,2]
[333082638,1721849443849,-500.0,0.00013972,2]
[333082639,1721849443859,-217.745452,0.00013972,2]
[333082640,1721849443868,-1223.68,0.00013972,2]
[333082641,1721849443878,-1264.25,0.00013972,2]
[333082642,1721849443888,-8045.59,0.00013972,2]
[333082643,1721849443897,-511.20157503,0.00013972,2]
[333082644,1721849443907,-765.65,0.00013972,2]
[333082645,1721849443917,-5978.25,0.00013972,2]
[333082646,1721849443926,-500.0,0.00013972,2]
[333082647,1721849443935,-3596.4,0.00013972,2]
[333082648,1721849443946,-500.0,0.00013972,2]
[333082649,1721849443955,-2025.58,0.00013972,2]
[333082650,1721849443966,-500.0,0.00013972,2]
[333082651,1721849443976,-1940.15,0.00013972,2]
[333082652,1721849443986,-500.0,0.00013972,2]
[333082653,1721849443995,-500.0,0.00013972,2]
[333082654,1721849444005,-500.0,0.00013972,2]
[333082655,1721849444017,-500.0,0.00013972,2]
[333082656,1721849444028,-684.65,0.00013972,2]
[333082657,1721849444039,-395.57400265,0.00013972,2]
[333082658,1721849444050,-500.0,0.00013972,2]
[333082659,1721849444060,-150.112233,0.00014,2]
[333082660,1721849444070,-1060.0,0.00014,2]
[333082661,1721849444079,-293.9329269,0.00014,2]
[333082662,1721849444089,-206.6937542,0.00014,2]
[333082663,1721849444102,-153.0,0.00014,2]
[333082664,1721849444112,-150.112233,0.00014,2]
[333082665,1721849444122,-1290.44631367,0.00014,2]
[333082666,1721849444135,-150.112233,0.000141,2]
[333082667,1721849444144,-150.112233,0.000141,2]
[333082668,1721849444153,-150.112233,0.000141,2]
[333082669,1721849444162,-898.28329132,0.00014171,2]
[333082670,1721849444172,-420.0,0.00014189,2]
[333082671,1721849444182,-150.112233,0.000142,2]
[333082672,1721849444191,-4391.64864386,0.00014236,2]
[333082673,1721849444200,-4391.64864386,0.00014236,2]
[333082674,1721849444210,-281.46142728,0.00014245,2]
[333082675,1721849444220,-370.718604,0.00014245,2]
[333082676,1721849444230,-370.718604,0.00014245,2]
[333082677,1721849444239,-183.20573,0.00014245,2]
[333082678,1721849444249,-183.20573,0.00014245,2]
[333082679,1721849444264,-151.0,0.00014245,2]
[333082680,1721849444273,-151.0,0.00014246,2]
[333082681,1721849444283,-1101.02,0.00014246,2]
[333082682,1721849444292,-588.69,0.00014246,2]
[333082683,1721849444303,-547.68,0.00014246,2]
[333082684,1721849444312,-500.0,0.00014246,2]
[333082685,1721849444322,-500.0,0.00014246,2]
[333082686,1721849444331,-500.0,0.00014246,2]
[333082687,1721849444343,-500.0,0.00014246,2]
[333082688,1721849444358,-500.0,0.00014246,2]
[333082689,1721849444368,-528.36846732,0.00014246,2]
[333082690,1721849444378,-500.0,0.00014246,2]
[333082691,1721849444387,-500.0,0.00014246,2]
[333082692,1721849444396,-705.07,0.00014246,2]
[333082693,1721849444407,-500.0,0.00014246,2]
[333082694,1721849444416,-1812.31,0.00014246,2]
[333082695,1721849444426,-501.48343815,0.00014246,2]
[333082696,1721849444435,-500.0,0.00014246,2]
[333082697,1721849444445,-500.0,0.00014246,2]
[333082698,1721849444455,-457.52091022,0.00014246,2]
[333082699,1721849444465,-500.0,0.00014246,2]
[333082700,1721849444475,-500.0,0.00014246,2]
[333082701,1721849444484,-500.0,0.00014246,2]
[333082702,1721849444493,-500.0,0.00014246,2]
[333082703,1721849444503,-685.21,0.00014246,2]
[333082704,1721849444512,-500.0,0.00014246,2]
[333082705,1721849444521,-500.0,0.00014246,2]
[333082706,1721849444531,-652.79,0.00014246,2]
[333082707,1721849444540,-500.0,0.00014246,2]
[333082708,1721849444551,-2095.62,0.00014246,2]
[333082709,1721849444561,-500.0,0.00014246,2]
[333082710,1721849444571,-500.0,0.00014246,2]
[333082711,1721849444580,-500.0,0.00014246,2]
[333082712,1721849444591,-2251.49,0.00014246,2]
[333082713,1721849444602,-1376.31,0.00014246,2]
[333082714,1721849444612,-500.0,0.00014246,2]
[333082715,1721849444622,-500.0,0.00014246,2]
[333082716,1721849444632,-500.0,0.00014246,2]
[333082717,1721849444642,-623.42,0.00014246,2]
[333082718,1721849444652,-500.0,0.00014246,2]
[333082719,1721849444662,-500.0,0.00014246,2]
[333082720,1721849444672,-500.0,0.00014246,2]
[333082721,1721849444682,-1579.31,0.00014246,2]
[333082722,1721849444692,-2906.9,0.00014246,2]
[333082723,1721849444701,-595.66,0.00014246,2]
[333082724,1721849444711,-1028.89,0.00014246,2]
[333082725,1721849444721,-500.0,0.00014246,2]
[333082726,1721849444730,-246.30357064,0.00014246,2]
[333082727,1721849444740,-1177.43,0.00014246,2]
[333082728,1721849444750,-500.0,0.00014246,2]
[333082729,1721849444760,-500.0,0.00014246,2]
[333082730,1721849444769,-500.0,0.00014246,2]
[333082731,1721849444779,-369.34,0.00014246,2]
[333082732,1721849444789,-500.0,0.00014246,2]
[333082733,1721849444798,-1824.45,0.00014246,2]
[333082734,1721849444808,-500.0,0.00014246,2]
[333082735,1721849444818,-1110.96,0.00014246,2]
[333082736,1721849444828,-500.0,0.00014246,2]
[333082737,1721849444837,-500.0,0.00014246,2]
[333082738,1721849444847,-648.43,0.00014246,2]
[333082739,1721849444856,-370.718604,0.00014246,2]
[333082740,1721849444866,-370.718604,0.00014246,2]
[333082741,1721849444876,-370.718604,0.00014246,2]
[333082742,1721849444886,-370.718604,0.00014246,2]
[333082743,1721849444896,-695.51,0.00014246,2]
[333082744,1721849444907,-500.0,0.00014246,2]
[333082745,1721849444916,-1520.4,0.00014246,2]
[333082746,1721849444926,-500.0,0.00014246,2]
[333082747,1721849444935,-500.0,0.00014246,2]
[333082748,1721849444946,-662.28,0.00014246,2]
[333082749,1721849444956,-1656.58,0.00014246,2]
[333082750,1721849444965,-500.0,0.00014246,2]
[333082751,1721849444975,-500.0,0.00014246,2]
[333082752,1721849444985,-642.1,0.00014246,2]
[333082753,1721849444995,-521.9,0.00014246,2]
[333082754,1721849445004,-712.45,0.00014246,2]
[333082755,1721849445015,-779.58,0.00014246,2]
[333082756,1721849445025,-500.0,0.00014246,2]
[333082757,1721849445034,-1587.24,0.00014246,2]
[333082758,1721849445043,-549.87,0.00014246,2]
[333082759,1721849445053,-500.0,0.00014246,2]
[333082760,1721849445062,-500.0,0.00014246,2]
[333082761,1721849445071,-1143.95,0.00014246,2]
[333082762,1721849445081,-1279.12,0.00014246,2]
[333082763,1721849445090,-530.71,0.00014246,2]
[333082764,1721849445101,-183.20573,0.00014246,2]
[333082765,1721849445110,-500.0,0.00014246,2]
[333082766,1721849445120,-183.20573,0.00014246,2]
[333082767,1721849445130,-500.0,0.00014246,2]
[333082768,1721849445139,-500.0,0.00014246,2]
[333082769,1721849445150,-1173.68,0.00014246,2]
[333082770,1721849445159,-500.0,0.00014246,2]
[333082771,1721849445168,-1699.57,0.00014246,2]
[333082772,1721849445178,-500.0,0.00014246,2]
[333082773,1721849445188,-500.0,0.00014246,2]
[333082774,1721849445198,-2171.34,0.00014246,2]
[333082775,1721849445207,-1179.92,0.00014246,2]
[333082776,1721849445217,-1387.81,0.00014246,2]
[333082777,1721849445227,-500.0,0.00014246,2]
[333082778,1721849445237,-617.23,0.00014246,2]
[333082779,1721849445247,-500.0,0.00014246,2]
[333082780,1721849445260,-500.0,0.00014246,2]
[333082781,1721849445270,-500.0,0.00014246,2]
[333082782,1721849445279,-500.0,0.00014246,2]
[333082783,1721849445288,-500.0,0.00014246,2]
[333082784,1721849445299,-500.0,0.00014246,2]
[333082785,1721849445308,-500.0,0.00014246,2]
[333082786,1721849445317,-1197.15,0.00014246,2]
[333082787,1721849445329,-151.0,0.00014246,2]
[333082788,1721849445339,-1568.27,0.00014246,2]
[333082789,1721849445349,-1347.35,0.00014246,2]
[333082790,1721849445359,-1085.66,0.00014246,2]
[333082793,1721849445371,-500.0,0.00014246,2]
[333082795,1721849445382,-500.0,0.00014246,2]
[333082797,1721849445394,-500.0,0.00014246,2]
[333082798,1721849445406,-1394.13,0.00014246,2]
[333082799,1721849445416,-4404.28,0.00014246,2]
[333082800,1721849445429,-500.0,0.00014246,2]
[333082801,1721849445439,-10581.37,0.00014246,2]
[333082802,1721849445448,-1673.72,0.00014246,2]
[333082803,1721849445459,-500.0,0.00014246,2]
[333082804,1721849445471,-2341.68,0.00014246,2]
[333082805,1721849445483,-733.27,0.00014246,2]
[333082806,1721849445494,-500.0,0.00014246,2]
[333082807,1721849445506,-737.83,0.00014246,2]
[333082808,1721849445516,-884.56,0.00014246,2]
[333082810,1721849445527,-500.0,0.00014246,2]
[333082811,1721849445538,-299.83443748,0.00014246,2]
[333082812,1721849445549,-1044.5,0.00014246,2]
[333082813,1721849445560,-2021.82,0.00014246,2]
[333082814,1721849445571,-500.0,0.00014246,2]
[333082815,1721849445583,-500.0,0.00014246,2]
[333082816,1721849445594,-545.85,0.00014246,2]
[333082817,1721849445605,-1617.6,0.00014246,2]
[333082818,1721849445615,-151.0,0.00014246,2]
[333082819,1721849445627,-151.0,0.00014246,2]
[333082820,1721849445640,-500.0,0.00014246,2]
[333082821,1721849445651,-500.0,0.00014246,2]
[333082822,1721849445661,-151.0,0.00014246,2]
[333082823,1721849445671,-151.0,0.00014246,2]
[333082824,1721849445680,-500.0,0.00014246,2]
[333082825,1721849445690,-2930.93,0.00014246,2]
[333082826,1721849445700,-500.0,0.00014246,2]
[333082827,1721849445709,-500.0,0.00014246,2]
[333082828,1721849445719,-500.0,0.00014246,2]
[333082829,1721849445729,-500.0,0.00014246,2]
[333082830,1721849445739,-831.54,0.00014246,2]
[333082831,1721849445749,-727.45,0.00014246,2]
[333082832,1721849445761,-500.0,0.00014246,2]
[333082833,1721849445772,-500.0,0.00014246,2]
[333082834,1721849445783,-2773.96,0.00014246,2]
[333082835,1721849445793,-500.0,0.00014246,2]
[333082836,1721849445802,-500.0,0.00014246,2]
[333082837,1721849445812,-12837.91,0.00014246,2]
[333082838,1721849445821,-500.0,0.00014246,2]
[333082839,1721849445831,-3940.69,0.00014246,2]
[333082840,1721849445840,-1716.4443673,0.00014246,2]
[333082849,1721849447664,-500.0,0.00013698,2]
[333082850,1721849447674,-500.0,0.00013698,2]
[333082851,1721849447686,-500.0,0.00013698,2]
[333082852,1721849447698,-293.3069335,0.00013698,2]
[333082853,1721849447709,-500.0,0.00013698,2]
[333082854,1721849447720,-284.67310834,0.00013698,2]
[333082855,1721849447731,-552.08192161,0.00013698,2]
[333082856,1721849447741,-552.08192161,0.00013698,2]
[333082857,1721849447752,-397.70642402,0.00013698,2]
[333082858,1721849447765,-154.37549759,0.00013698,2]
[333082859,1721849447776,-366.05479741,0.00013698,2]
[333082860,1721849447788,-186.0271242,0.00013698,2]
[333082861,1721849447799,-552.08192161,0.00013698,2]
[333082862,1721849447810,-552.08192161,0.00013698,2]
[333082863,1721849447821,-552.08192161,0.00013698,2]
[333082864,1721849447831,-33.97889872,0.00013698,2]
[333082868,1721850359126,-378.13168857,9.527e-05,2]
[333082870,1721850431127,-400.0,9.435e-05,2]
[333082871,1721850431150,-200.0,9.44e-05,2]
[333082872,1721850431172,-200.0,9.44e-05,2]
[333082873,1721850431193,-2473.13301155,9.527e-05,2]
[333082874,1721850450301,-4503.37113152,9.432e-05,2]
[333082875,1721850450327,-1917.88447417,9.527e-05,2]
[333082876,1721850545163,-4360.68222898,9.338e-05,2]
[333082877,1721850545184,-200.0,9.34e-05,2]
[333082878,1721850545206,-300.0,9.526e-05,2]
[333082879,1721850545228,-300.0,9.526e-05,2]
[333082880,1721850545452,-2585.48665735,9.527e-05,2]
[333082881,1721850545472,-218.75120258,9.527e-05,2]
[333082882,1721850545495,-4707.01308214,9.527e-05,2]
[333082883,1721850545518,-3781.68915549,9.527e-05,2]
[333082884,1721850545546,-154.86316634,9.527e-05,2]
[333082885,1721850545571,-1627.88320947,9.527e-05,2]
[333082886,1721850545592,-154.71377951,9.527e-05,2]
[333082887,1721850545617,-848.60176643,9.999e-05,2]
[333082888,1721850545644,-420.0,0.00010479,2]
[333082889,1721850545666,-301.0,0.00010479,2]
[333082890,1721850545689,-400.0,0.0001071,2]
[333082891,1721850545709,-837.41,0.00010959,2]
[333082892,1721850545732,-292.3305941,0.00011223,2]
[333082893,1721850545754,-250.0,0.00011453,2]
[333082894,1721850545776,-587.0,0.00011526,2]
[333082895,1721850546783,200.0,9.34e-05,2]
[333082896,1721850546844,62.89859524,0.0001071,2]
[333082897,1721850549122,-137.10140476,0.0001071,2]
[333082898,1721850552105,273.37336231,9.9e-05,2]
[333082899,1721850553629,200.0,9.34e-05,2]
[333082900,1721850553661,400.0,0.0001071,2]
[333082901,1721850559935,159.39764253,9.9e-05,2]
[333082905,1721850579226,1125.64014788,0.00012,2]
[333082907,1721850629881,200.0,0.0001,2]
[333082908,1721850629932,400.0,0.0001137,2]
[333082916,1721850632150,-600.0,0.00013147,2]
[333082917,1721850632159,-1767.48753106,0.00013598,2]
[333082918,1721850632169,-248.85369399,0.00013598,2]
[333082931,1721850637947,-200.0,0.00013425,2]
[333082932,1721850637957,-563.82370551,0.00013598,2]
[333082933,1721850637968,-153.0,0.00013637,2]
[333082934,1721850637977,-53865.3085409,0.00013688,2]
[333082935,1721850637987,-151.959013,0.00013698,2]
[333082936,1721850637999,-500.0,0.00013698,2]
[333082937,1721850638009,-500.0,0.00013698,2]
[333082938,1721850638019,-500.0,0.00013698,2]
[333082939,1721850638031,-500.0,0.00013698,2]
[333082940,1721850638041,-500.0,0.00013698,2]
[333082941,1721850638051,-502.31498446,0.00013698,2]
[333082943,1721850638062,-500.0,0.00013698,2]
[333082945,1721850638071,-500.0,0.00013698,2]
[333082947,1721850638081,-500.0,0.00013698,2]
[333082949,1721850638091,-500.0,0.00013698,2]
[333082951,1721850638100,-500.0,0.00013698,2]
[333082953,1721850638110,-500.57129976,0.00013698,2]
[333082955,1721850638119,-500.0,0.00013698,2]
[333082957,1721850638129,-500.0,0.00013698,2]
[333082958,1721850638138,-500.0,0.00013698,2]
[333082959,1721850638147,-501.48343815,0.00013698,2]
[333082960,1721850638157,-500.0,0.00013698,2]
[333082961,1721850638167,-500.0,0.00013698,2]
[333082962,1721850638177,-500.0,0.00013698,2]
[333082963,1721850638187,-500.0,0.00013698,2]
[333082964,1721850638196,-500.0,0.00013698,2]
[333082965,1721850638206,-500.0,0.00013698,2]
[333082966,1721850638216,-488.59552143,0.00013698,2]
[333082967,1721850638226,-749.43,0.00013698,2]
[333082968,1721850638236,-500.0,0.00013698,2]
[333082969,1721850638246,-500.0,0.00013698,2]
[333082970,1721850638255,-500.0,0.00013698,2]
[333082971,1721850638265,-500.0,0.00013698,2]
[333082972,1721850638275,-500.0,0.00013698,2]
[333082973,1721850638285,-500.0,0.00013698,2]
[333082974,1721850638295,-500.0,0.00013698,2]
[333082975,1721850638304,-500.0,0.00013698,2]
[333082976,1721850638314,-287.80781033,0.00013698,2]
[333082977,1721850638324,-1262.06,0.00013698,2]
[333082978,1721850638335,-500.0,0.00013698,2]
[333082979,1721850638345,-500.0,0.00013698,2]
[333082980,1721850638354,-500.0,0.00013698,2]
[333082981,1721850638366,-1504.94,0.00013698,2]
[333082982,1721850638376,-383.67073235,0.00013698,2]
[333082983,1721850638385,-500.0,0.00013698,2]
[333082984,1721850638395,-500.0,0.00013698,2]
[333082985,1721850638405,-500.0,0.00013698,2]
[333082986,1721850638416,-500.0,0.00013698,2]
[333082987,1721850638425,-567.29295055,0.00013698,2]
[333082988,1721850638435,-500.0,0.00013698,2]
[333082989,1721850638445,-1508.0,0.00013698,2]
[333082990,1721850638454,-500.0,0.00013698,2]
[333082991,1721850638466,-500.0,0.00013698,2]
[333082992,1721850638476,-500.0,0.00013698,2]
[333082993,1721850638485,-625.78,0.00013698,2]
[333082994,1721850638495,-496.65481811,0.00013698,2]
[333082995,1721850638505,-500.0,0.00013698,2]
[333082996,1721850638514,-2472.9,0.00013698,2]
[333082997,1721850638523,-500.0,0.00013698,2]
[333082998,1721850638533,-500.0,0.00013698,2]
[333082999,1721850638543,-500.0,0.00013698,2]
[333083000,1721850638552,-500.0,0.00013698,2]
[333083001,1721850638562,-500.0,0.00013698,2]
[333083002,1721850638572,-685.82,0.00013698,2]
[333083003,1721850638583,-500.0,0.00013698,2]
[333083004,1721850638597,-520.28,0.00013698,2]
[333083005,1721850638606,-539.7,0.00013698,2]
[333083006,1721850638615,-500.0,0.00013698,2]
[333083007,1721850638628,-3213.07,0.00013698,2]
[333083008,1721850638638,-510.73957969,0.00013698,2]
[333083009,1721850638649,-500.0,0.00013698,2]
[333083010,1721850638658,-500.0,0.00013698,2]
[333083011,1721850638671,-500.0,0.00013698,2]
[333083012,1721850638681,-500.0,0.00013698,2]
[333083013,1721850638690,-558.85,0.00013698,2]
[333083014,1721850638699,-500.0,0.00013698,2]
[333083015,1721850638709,-500.0,0.00013698,2]
[333083016,1721850638718,-500.0,0.00013698,2]
[333083017,1721850638727,-1263.71,0.00013698,2]
[333083018,1721850638736,-1948.13,0.00013698,2]
[333083019,1721850638746,-500.0,0.00013698,2]
[333083020,1721850638755,-677.08,0.00013698,2]
[333083021,1721850638764,-1499.07,0.00013698,2]
[333083022,1721850638773,-500.0,0.00013698,2]
[333083023,1721850638783,-500.0,0.00013698,2]
[333083024,1721850638793,-423.60188235,0.00013698,2]
[333083025,1721850638803,-234.57271414,0.00013698,2]
[333083026,1721850638813,-500.0,0.00013698,2]
[333083027,1721850638824,-500.0,0.00013698,2]
[333083028,1721850638835,-500.0,0.00013698,2]
[333083029,1721850638846,-756.75,0.00013698,2]
[333083030,1721850638855,-544.45,0.00013698,2]
[333083031,1721850638864,-500.0,0.00013698,2]
[333083032,1721850638874,-739.37,0.00013698,2]
[333083033,1721850638884,-2024.68,0.00013698,2]
[333083034,1721850638894,-537.1,0.00013698,2]
[333083035,1721850638905,-500.0,0.00013698,2]
[333083036,1721850638917,-500.0,0.00013698,2]
[333083037,1721850638927,-1175.75,0.00013698,2]
[333083038,1721850638937,-500.0,0.00013698,2]
[333083039,1721850638946,-694.78,0.00013698,2]
[333083040,1721850638957,-500.0,0.00013698,2]
[333083041,1721850638966,-1764.56,0.00013698,2]
[333083042,1721850638976,-788.29,0.00013698,2]
[333083043,1721850638986,-500.0,0.00013698,2]
[333083044,1721850638995,-500.0,0.00013698,2]
[333083045,1721850639005,-1720.25,0.00013698,2]
[333083046,1721850639014,-500.0,0.00013698,2]
[333083047,1721850639023,-500.0,0.00013698,2]
[333083048,1721850639033,-500.0,0.00013698,2]
[333083049,1721850639043,-1627.5,0.00013698,2]
[333083050,1721850639052,-589.95,0.00013698,2]
[333083051,1721850639062,-500.0,0.00013698,2]
[333083052,1721850639072,-500.0,0.00013698,2]
[333083053,1721850639083,-501.0,0.00013698,2]
[333083054,1721850639094,-1474.96,0.00013698,2]
[333083055,1721850639107,-554.49,0.00013698,2]
[333083056,1721850639117,-500.0,0.00013698,2]
[333083057,1721850639126,-500.0,0.00013698,2]
[333083058,1721850639136,-1840.05,0.00013698,2]
[333083059,1721850639146,-500.0,0.00013698,2]
[333083060,1721850639155,-823.57,0.00013698,2]
[333083061,1721850639165,-500.0,0.00013698,2]
[333083062,1721850639174,-500.0,0.00013698,2]
[333083063,1721850639184,-595.16,0.00013698,2]